lending/lending_fUSD_20241229
["ID","MTS","AMOUNT","RATE_DAILY","PERIOD"]
[347027668,1735474256250,-500.0,0.00012763,2]
[347027669,1735474256258,-500.0,0.00012763,2]
[347027670,1735474256268,-500.0,0.00012763,2]
[347027671,1735474256277,-536.82,0.00012763,2]
[347027672,1735474256286,-500.0,0.00012763,2]
[347027673,1735474256295,-500.0,0.00012763,2]
[347027674,1735474256304,-500.0,0.00012763,2]
[347027675,1735474256312,-255.31910584,0.00012763,2]
[347027676,1735474256322,-500.0,0.00012763,2]
[347027677,1735474256331,-500.0,0.00012763,2]
[347027678,1735474256341,-500.0,0.00012763,2]
[347027679,1735474256357,-500.0,0.00012763,2]
[347027680,1735474256366,-500.0,0.00012763,2]
[347027681,1735474256375,-222.67871932,0.00012763,2]
[347027682,1735474256384,-500.0,0.00012763,2]
[347027683,1735474256393,-500.0,0.00012763,2]
[347027684,1735474256403,-500.0,0.00012763,2]
[347027685,1735474256412,-500.0,0.00012763,2]
[347027686,1735474256421,-500.0,0.00012763,2]
[347027687,1735474256431,-500.0,0.00012763,2]
[347027688,1735474256441,-500.0,0.00012763,2]
[347027689,1735474256452,-508.61,0.00012763,2]
[347027690,1735474256461,-599.6,0.00012763,2]
[347027691,1735474256472,-500.0,0.00012763,2]
[347027692,1735474256481,-500.0,0.00012763,2]
[347027693,1735474256490,-575.11,0.00012763,2]
[347027694,1735474256499,-500.0,0.00012763,2]
[347027695,1735474256508,-500.0,0.00012763,2]
[347027696,1735474256517,-500.0,0.00012763,2]
[347027697,1735474256526,-500.0,0.00012763,2]
[347027698,1735474256535,-500.0,0.00012763,2]
[347027699,1735474256544,-1396.77,0.00012763,2]
[347027700,1735474256553,-500.0,0.00012763,2]
[347027701,1735474256562,-500.0,0.00012763,2]
[347027702,1735474256572,-500.0,0.00012763,2]
[347027703,1735474256581,-500.0,0.00012763,2]
[347027704,1735474256590,-500.0,0.00012763,2]
[347027705,1735474256599,-500.0,0.00012763,2]
[347027706,1735474256608,-500.0,0.00012763,2]
[347027707,1735474256617,-500.0,0.00012763,2]
[347027708,1735474256626,-500.0,0.00012763,2]
[347027709,1735474256636,-500.0,0.00012763,2]
[347027710,1735474256645,-500.0,0.00012763,2]
[347027711,1735474256655,-500.0,0.00012763,2]
[347027712,1735474256663,-500.0,0.00012763,2]
[347027713,1735474256673,-500.0,0.00012763,2]
[347027714,1735474256682,-500.0,0.00012763,2]
[347027715,1735474256691,-500.0,0.00012763,2]
[347027716,1735474256700,-500.0,0.00012763,2]
[347027717,1735474256709,-1936.33,0.00012763,2]
[347027718,1735474256718,-500.0,0.00012763,2]
[347027719,1735474256727,-500.0,0.00012763,2]
[347027720,1735474256736,-500.0,0.00012763,2]
[347027721,1735474256745,-500.0,0.00012763,2]
[347027722,1735474256754,-500.0,0.00012763,2]
[347027723,1735474256762,-500.0,0.00012763,2]
[347027724,1735474256772,-500.0,0.00012763,2]
[347027725,1735474256782,-500.0,0.00012763,2]
[347027726,1735474256791,-500.0,0.00012763,2]
[347027727,1735474256800,-501.57035091,0.00012763,2]
[347027728,1735474256809,-500.0,0.00012763,2]
[347027729,1735474256819,-500.0,0.00012763,2]
[347027730,1735474256828,-500.0,0.00012763,2]
[347027731,1735474256837,-500.0,0.00012763,2]
[347027732,1735474256846,-500.0,0.00012763,2]
[347027733,1735474256854,-500.0,0.00012763,2]
[347027734,1735474256863,-514.77173186,0.00012763,2]
[347027735,1735474256872,-500.0,0.00012763,2]
[347027736,1735474256881,-500.0,0.00012763,2]
[347027737,1735474256891,-502.60492087,0.00012763,2]
[347027738,1735474256899,-500.0,0.00012763,2]
[347027739,1735474256908,-2172.19,0.00012763,2]
[347027740,1735474256918,-500.0,0.00012763,2]
[347027741,1735474256927,-500.0,0.00012763,2]
[347027742,1735474256936,-508.51957175,0.00012763,2]
[347027743,1735474256945,-227.25154631,0.00012763,2]
[347027744,1735474256954,-500.0,0.00012763,2]
[347027745,1735474256963,-500.0,0.00012763,2]
[347027746,1735474256972,-500.0,0.00012763,2]
[347027747,1735474256981,-500.0,0.00012763,2]
[347027748,1735474256990,-500.0,0.00012763,2]
[347027749,1735474256999,-536.77480804,0.00012763,2]
[347027750,1735474257008,-500.0,0.00012763,2]
[347027751,1735474257017,-500.0,0.00012763,2]
[347027752,1735474257026,-191.42434729,0.00012763,2]
[347027753,1735474257035,-500.0,0.00012763,2]
[347027754,1735474257044,-500.0,0.00012763,2]
[347027755,1735474257053,-500.0,0.00012763,2]
[347027756,1735474257062,-191.23591364,0.00012763,2]
[347027757,1735474257071,-500.0,0.00012763,2]
[347027758,1735474257080,-500.0,0.00012763,2]
[347027759,1735474257089,-500.0,0.00012763,2]
[347027760,1735474257098,-500.0,0.00012763,2]
[347027761,1735474257107,-500.0,0.00012763,2]
[347027762,1735474257116,-500.0,0.00012763,2]
[347027763,1735474257125,-500.0,0.00012763,2]
[347027764,1735474257134,-568.97764101,0.00012763,2]
[347027765,1735474257143,-500.0,0.00012763,2]
[347027766,1735474257152,-500.0,0.00012763,2]
[347027767,1735474257161,-315.63411094,0.00012763,2]
[347027768,1735474257170,-272.51615909,0.00012763,2]
[347027769,1735474257179,-315.55464898,0.00012763,2]
[347027770,1735474257188,-1191.18,0.00012763,2]
[347027771,1735474257197,-500.0,0.00012763,2]
[347027772,1735474257206,-500.0,0.00012763,2]
[347027773,1735474257214,-500.0,0.00012763,2]
[347027774,1735474257223,-500.0,0.00012763,2]
[347027775,1735474257361,-207.2533064,0.00012763,2]
[347027776,1735474257371,-500.0,0.00012763,2]
[347027777,1735474257380,-315.43735696,0.00012763,2]
[347027778,1735474257389,-500.0,0.00012763,2]
[347027779,1735474257398,-500.0,0.00012763,2]
[347027780,1735474257407,-604.81,0.00012763,2]
[347027781,1735474257417,-500.0,0.00012763,2]
[347027782,1735474257426,-500.0,0.00012763,2]
[347027783,1735474257435,-500.0,0.00012763,2]
[347027784,1735474257444,-500.38023095,0.00012763,2]
[347027785,1735474257454,-500.0,0.00012763,2]
[347027786,1735474257463,-500.0,0.00012763,2]
[347027787,1735474257472,-500.0,0.00012763,2]
[347027788,1735474257481,-500.0,0.00012763,2]
[347027789,1735474257490,-500.0,0.00012763,2]
[347027790,1735474257499,-500.0,0.00012763,2]
[347027791,1735474257508,-500.0,0.00012763,2]
[347027792,1735474257517,-500.0,0.00012763,2]
[347027793,1735474257526,-500.0,0.00012763,2]
[347027794,1735474257535,-500.0,0.00012763,2]
[347027795,1735474257544,-500.0,0.00012763,2]
[347027796,1735474257554,-500.0,0.00012763,2]
[347027797,1735474257563,-500.0,0.00012763,2]
[347027798,1735474257573,-500.0,0.00012763,2]
[347027799,1735474257582,-500.0,0.00012763,2]
[347027800,1735474257591,-615.38369792,0.00012763,2]
[347027801,1735474257600,-500.0,0.00012763,2]
[347027802,1735474257609,-500.0,0.00012763,2]
[347027803,1735474257618,-500.0,0.00012763,2]
[347027804,1735474257628,-530.49859794,0.00012763,2]
[347027805,1735474257636,-2001.4,0.00012763,2]
[347027806,1735474257645,-500.0,0.00012763,2]
[347027807,1735474257654,-500.0,0.00012763,2]
[347027808,1735474257663,-500.0,0.00012763,2]
[347027809,1735474257673,-500.0,0.00012763,2]
[347027810,1735474257682,-500.0,0.00012763,2]
[347027811,1735474257691,-500.0,0.00012763,2]
[347027812,1735474257700,-500.0,0.00012763,2]
[347027813,1735474257710,-500.0,0.00012763,2]
[347027814,1735474257719,-580.57,0.00012763,2]
[347027815,1735474257729,-500.0,0.00012763,2]
[347027816,1735474257737,-500.0,0.00012763,2]
[347027817,1735474257746,-500.0,0.00012763,2]
[347027818,1735474257755,-500.0,0.00012763,2]
[347027819,1735474257764,-401.77980678,0.00012763,2]
[347027820,1735474257775,-500.0,0.00012763,2]
[347027821,1735474257784,-500.0,0.00012763,2]
[347027822,1735474257793,-571.24,0.00012763,2]
[347027823,1735474257802,-500.0,0.00012763,2]
[347027824,1735474257811,-6060.55,0.00012763,2]
[347027825,1735474257820,-502.83457123,0.00012763,2]
[347027826,1735474257829,-500.0,0.00012763,2]
[347027827,1735474257838,-500.0,0.00012763,2]
[347027828,1735474257849,-500.0,0.00012763,2]
[347027829,1735474257858,-500.0,0.00012763,2]
[347027830,1735474257866,-500.0,0.00012763,2]
[347027831,1735474257875,-500.0,0.00012763,2]
[347027832,1735474257884,-500.0,0.00012763,2]
[347027833,1735474257893,-500.0,0.00012763,2]
[347027834,1735474257902,-500.0,0.00012763,2]
[347027835,1735474257911,-697.54,0.00012763,2]
[347027836,1735474257920,-500.0,0.00012763,2]
[347027837,1735474257929,-500.0,0.00012763,2]
[347027838,1735474257938,-500.0,0.00012763,2]
[347027839,1735474257947,-500.0,0.00012763,2]
[347027840,1735474257956,-500.0,0.00012763,2]
[347027841,1735474257965,-500.0,0.00012763,2]
[347027842,1735474257974,-500.0,0.00012763,2]
[347027843,1735474257983,-500.0,0.00012763,2]
[347027844,1735474257992,-500.0,0.00012763,2]
[347027845,1735474258000,-552.02588548,0.00012763,2]
[347027846,1735474258009,-5660.13,0.00012763,2]
[347027847,1735474258018,-500.0,0.00012763,2]
[347027848,1735474258027,-500.0,0.00012763,2]
[347027849,1735474258036,-500.0,0.00012763,2]
[347027850,1735474258045,-500.0,0.00012763,2]
[347027851,1735474258054,-500.0,0.00012763,2]
[347027852,1735474258063,-500.0,0.00012763,2]
[347027853,1735474258071,-150.0,0.00012763,2]
[347027854,1735474258080,-500.0,0.00012763,2]
[347027855,1735474258090,-500.0,0.00012763,2]
[347027856,1735474258098,-500.0,0.00012763,2]
[347027857,1735474258107,-500.0,0.00012763,2]
[347027858,1735474258116,-500.0,0.00012763,2]
[347027859,1735474258125,-5000.0,0.00012763,2]
[347027860,1735474258135,-3603.92,0.00012763,2]
[347027861,1735474258144,-500.0,0.00012763,2]
[347027862,1735474258155,-500.80865954,0.00012763,2]
[347027863,1735474258164,-500.0,0.00012763,2]
[347027864,1735474258174,-500.0,0.00012763,2]
[347027865,1735474258185,-500.0,0.00012763,2]
[347027866,1735474258195,-500.0,0.00012763,2]
[347027867,1735474258205,-500.0,0.00012763,2]
[347027868,1735474258215,-500.0,0.00012763,2]
[347027869,1735474258224,-500.0,0.00012763,2]
[347027870,1735474258234,-500.0,0.00012763,2]
[347027871,1735474258243,-500.0,0.00012763,2]
[347027872,1735474258252,-500.0,0.00012763,2]
[347027873,1735474258261,-500.0,0.00012763,2]
[347027874,1735474258270,-500.0,0.00012763,2]
[347027875,1735474258279,-500.0,0.00012763,2]
[347027876,1735474258288,-505.25717637,0.00012763,2]
[347027877,1735474258298,-500.0,0.00012763,2]
[347027878,1735474258307,-500.0,0.00012763,2]
[347027879,1735474258317,-500.76547293,0.00012763,2]
[347027880,1735474258327,-500.0,0.00012763,2]
[347027881,1735474258336,-500.0,0.00012763,2]
[347027882,1735474258344,-500.0,0.00012763,2]
[347027883,1735474258355,-500.0,0.00012763,2]
[347027884,1735474258365,-500.0,0.00012763,2]
[347027885,1735474258374,-500.0,0.00012763,2]
[347027886,1735474258383,-505.77695175,0.00012763,2]
[347027887,1735474258395,-500.0,0.00012763,2]
[347027888,1735474258406,-500.0,0.00012763,2]
[347027889,1735474258416,-500.0,0.00012763,2]
[347027890,1735474258425,-1821.61,0.00012763,2]
[347027891,1735474258434,-500.0,0.00012763,2]
[347027892,1735474258443,-500.0,0.00012763,2]
[347027893,1735474258452,-523.54272935,0.00012763,2]
[347027894,1735474258461,-500.0,0.00012763,2]
[347027895,1735474258470,-500.0,0.00012763,2]
[347027896,1735474258480,-500.0,0.00012763,2]
[347027897,1735474258489,-500.0,0.00012763,2]
[347027898,1735474258498,-500.0,0.00012763,2]
[347027899,1735474258507,-500.0,0.00012763,2]
[347027900,1735474258516,-500.0,0.00012763,2]
[347027901,1735474258525,-500.0,0.00012763,2]
[347027902,1735474258535,-500.0,0.00012763,2]
[347027903,1735474258544,-500.0,0.00012763,2]
[347027904,1735474258553,-8232.12,0.00012763,2]
[347027905,1735474258563,-500.0,0.00012763,2]
[347027906,1735474258572,-500.0,0.00012763,2]
[347027907,1735474258581,-500.0,0.00012763,2]
[347027908,1735474258590,-500.0,0.00012763,2]
[347027909,1735474258599,-500.0,0.00012763,2]
[347027910,1735474258608,-505.55883143,0.00012763,2]
[347027911,1735474258617,-2945.26,0.00012763,2]
[347027912,1735474258626,-500.0,0.00012763,2]
[347027913,1735474258635,-500.0,0.00012763,2]
[347027914,1735474258644,-1391.58,0.00012763,2]
[347027915,1735474258653,-1014.98,0.00012763,2]
[347027916,1735474258662,-1735.76,0.00012763,2]
[347027917,1735474258671,-1726.03,0.00012763,2]
[347027918,1735474258680,-6297.88,0.00012763,2]
[347027919,1735474258689,-1799.09,0.00012763,2]
[347027920,1735474258698,-1276.24,0.00012763,2]
[347027921,1735474258707,-500.0,0.00012763,2]
[347027922,1735474258716,-1713.49,0.00012763,2]
[347027923,1735474258725,-925.47,0.00012763,2]
[347027924,1735474258734,-925.47,0.00012763,2]
[347027925,1735474258743,-500.0,0.00012763,2]
[347027926,1735474258751,-2959.15,0.00012763,2]
[347027927,1735474258760,-1370.67,0.00012763,2]
[347027928,1735474258769,-1641.7,0.00012763,2]
[347027929,1735474258782,-2891.99,0.00012763,2]
[347027930,1735474258791,-493.84,0.00012763,2]
[347027931,1735474258800,-501.48434126,0.00012764,2]
[347027932,1735474258809,-620.93,0.00012764,2]
[347027933,1735474258818,-500.0,0.00012764,2]
[347027934,1735474258828,-500.0,0.00012764,2]
[347027935,1735474258836,-778.15,0.00012764,2]
[347027936,1735474258846,-500.0,0.00012765,2]
[347027937,1735474258854,-500.0,0.00012765,2]
[347027938,1735474258863,-1550.19,0.00012765,2]
[347027939,1735474258872,-8934.67,0.00012765,2]
[347027940,1735474258881,-500.0,0.00012765,2]
[347027941,1735474258890,-610.31,0.00012765,2]
[347027942,1735474258899,-953.22,0.00012765,2]
[347027943,1735474258907,-643.41,0.00012765,2]
[347027944,1735474258916,-2253.75,0.00012765,2]
[347027945,1735474258925,-2240.39,0.00012765,2]
[347027946,1735474258934,-500.0,0.00012765,2]
[347027947,1735474258942,-1000.0,0.00012765,2]
[347027948,1735474258951,-595.51,0.00012765,2]
[347027949,1735474258960,-500.0,0.00012765,2]
[347027950,1735474258969,-500.0,0.00012765,2]
[347027951,1735474258978,-1510.81,0.00012765,2]
[347027952,1735474258987,-1480.17,0.00012765,2]
[347027953,1735474258995,-925.47,0.00012765,2]
[347027954,1735474259005,-157.377,0.00012773,2]
[347027955,1735474259013,-1147.719,0.00012773,2]
[347027956,1735474259022,-500.0,0.00012779,2]
[347027957,1735474259031,-646.99,0.00012779,2]
[347027958,1735474259040,-500.0,0.00012779,2]
[347027959,1735474259050,-632.19,0.00012779,2]
[347027960,1735474259058,-1132.5,0.00012779,2]
[347027961,1735474259067,-1021.12,0.00012779,2]
[347027962,1735474259078,-1302.83,0.00012779,2]
[347027963,1735474259087,-2162.08,0.00012779,2]
[347027964,1735474259097,-9999.03,0.00012779,2]
[347027965,1735474259106,-1221.26,0.00012779,2]
[347027966,1735474259115,-737.2,0.00012779,2]
[347027967,1735474259124,-925.47,0.00012797,2]
[347027968,1735474259132,-500.0,0.00012799,2]
[347027969,1735474259141,-500.0,0.00012799,2]
[347027970,1735474259150,-500.0,0.00012799,2]
[347027971,1735474259159,-500.0,0.00012799,2]
[347027972,1735474259168,-500.0,0.00012799,2]
[347027973,1735474259177,-500.0,0.00012799,2]
[347027974,1735474259186,-500.0,0.00012799,2]
[347027975,1735474259195,-500.0,0.00012799,2]
[347027976,1735474259204,-500.0,0.00012799,2]
[347027977,1735474259212,-649.75,0.00012799,2]
[347027978,1735474259222,-925.47,0.00012799,2]
[347027979,1735474259231,-925.47,0.00012799,2]
[347027980,1735474259240,-925.47,0.00012799,2]
[347027981,1735474259249,-925.47,0.00012799,2]
[347027982,1735474259258,-925.47,0.00012799,2]
[347027983,1735474259267,-925.47,0.00012799,2]
[347027984,1735474259276,-925.47,0.00012799,2]
[347027985,1735474259285,-925.47,0.00012799,2]
[347027986,1735474259294,-807.8850317,0.00012805,2]
[347027987,1735474259303,-649.75,0.00012827,2]
[347027988,1735474259311,-925.47,0.00012849,2]
[347027989,1735474259320,-649.75,0.00012854,2]
[347027990,1735474259331,-1420.81012,0.0001287,2]
[347027991,1735474259340,-594.43,0.00012879,2]
[347027992,1735474259350,-649.75,0.00012881,2]
[347027993,1735474259359,-649.75,0.00012909,2]
[347027994,1735474259368,-649.75,0.00012936,2]
[347027995,1735474259376,-649.75,0.00012964,2]
[347027996,1735474259385,-648.16566158,0.00012973,2]
[347027997,1735474259395,-206.69496547,0.00012973,2]
[347027998,1735474259404,-500.0,0.00012973,2]
[347027999,1735474259413,-500.0,0.00012973,2]
[347028000,1735474259424,-7334.0,0.00012986,2]
[347028001,1735474259433,-9818.0,0.00012986,2]
[347028002,1735474259443,-649.75,0.00012991,2]
[347028003,1735474259451,-272.33325778,0.00012999,2]
[347028004,1735474259461,-500.68609038,0.00012999,2]
[347028005,1735474259470,-500.0,0.00012999,2]
[347028006,1735474259479,-500.0,0.00012999,2]
[347028007,1735474259490,-500.0,0.00012999,2]
[347028008,1735474259499,-500.0,0.00012999,2]
[347028009,1735474259508,-500.0,0.00012999,2]
[347028010,1735474259640,-500.0,0.00012999,2]
[347028011,1735474259649,-500.0,0.00012999,2]
[347028012,1735474259658,-500.0,0.00012999,2]
[347028013,1735474259667,-500.0,0.00012999,2]
[347028014,1735474259676,-502.23490706,0.00012999,2]
[347028015,1735474259686,-500.0,0.00012999,2]
[347028016,1735474259695,-500.0,0.00012999,2]
[347028017,1735474259704,-500.0,0.00012999,2]
[347028018,1735474259713,-500.0,0.00012999,2]
[347028019,1735474259722,-500.0,0.00012999,2]
[347028020,1735474259731,-500.0,0.00012999,2]
[347028021,1735474259741,-501.03426991,0.00012999,2]
[347028022,1735474259750,-786.22,0.00012999,2]
[347028023,1735474259758,-500.0,0.00012999,2]
[347028024,1735474259768,-500.0,0.00012999,2]
[347028025,1735474259781,-500.0,0.00012999,2]
[347028026,1735474259790,-500.0,0.00012999,2]
[347028027,1735474259799,-500.0,0.00012999,2]
[347028028,1735474259808,-500.0,0.00012999,2]
[347028029,1735474259818,-500.0,0.00012999,2]
[347028030,1735474259830,-498.5685478,0.00012999,2]
[347028031,1735474259839,-925.47,0.00012999,2]
[347028032,1735474259847,-925.47,0.00012999,2]
[347028033,1735474259857,-925.47,0.00012999,2]
[347028034,1735474259866,-925.47,0.00012999,2]
[347028035,1735474259876,-925.47,0.00012999,2]
[347028036,1735474259885,-925.47,0.00012999,2]
[347028037,1735474259894,-925.47,0.00012999,2]
[347028038,1735474259903,-925.47,0.00012999,2]
[347028039,1735474259912,-925.47,0.00012999,2]
[347028040,1735474259922,-925.47,0.00012999,2]
[347028041,1735474259931,-925.69,0.00012999,2]
[347028042,1735474259940,-638.0,0.00013,2]
[347028043,1735474259949,-226.30033356,0.00013,2]
[347028044,1735474259958,-10481.66650148,0.00013,2]
[347028045,1735474259967,-405129.90650268,0.00013,2]
[347028046,1735474259976,-575460.19924906,0.00013,2]
[347028047,1735474259986,-256603.51414113,0.00013,2]
[347028048,1735474259995,-599870.47752693,0.00013,2]
[347028049,1735474260004,-804647.1396341,0.00013,2]
[347028050,1735474260013,-302532.15672464,0.00013,2]
[347028055,1735474352089,746.548421,0.00024722,120]
[347028061,1735474618907,500.0,0.00024714,120]
[347028063,1735474716813,216.55,0.00010137,2]
[347028085,1735474962914,335.14,9.742e-05,2]
[347028086,1735474990972,500.0,0.00024691,120]
[347028091,1735475125977,981.55271488,0.000108,2]
[347028166,1735475212914,421.26,0.00016658,30]
[347028195,1735475431732,-3185.74143313,0.00011256,2]
[347028196,1735475431743,-250.0,0.00011275,2]
[347028197,1735475431752,-162.99391687,0.00011316,2]
[347028198,1735475431818,-87.00608313,0.00011316,2]
[347028199,1735475431827,-299.99391687,0.00011357,2]
[347028200,1735475431838,-19611.06608313,0.00011357,2]
[347028201,1735475431848,-1852.42,0.00011397,2]
[347028202,1735475431858,-150.0,0.00011688,2]
[347028203,1735475431868,-150.43019059,0.00011688,2]
[347028204,1735475431877,-261.73,0.00011699,2]
[347028205,1735475431887,-397.82,0.0001171,2]
[347028206,1735475431897,-2500.0,0.00011791,2]
[347028207,1735475431906,-2500.0,0.0001182,2]
[347028208,1735475431916,-832.21340773,0.00011844,2]
[347028209,1735475431999,-167.78659227,0.00011844,2]
[347028210,1735475432009,-4251.35509102,0.00011856,2]
[347028211,1735475432019,-150.0,0.00011864,2]
[347028212,1735475432029,-200.0,0.00011902,2]
[347028213,1735475432039,-917.7,0.0001192,2]
[347028214,1735475432048,-450.0,0.00012,2]
[347028215,1735475432057,-164.79,0.00012004,2]
[347028216,1735475432066,-335.14,0.00012006,2]
[347028217,1735475432076,-700.0,0.000121,4]
[347028218,1735475432085,-1400.0,0.000122,4]
[347028219,1735475432094,-2100.0,0.000123,4]
[347028220,1735475432106,-288.497,0.0001235,2]
[347028221,1735475432116,-2900.0,0.000124,4]
[347028222,1735475432125,-3600.0,0.000125,4]
[347028223,1735475432134,-504.78,0.00012592,2]
[347028224,1735475432144,-700.0,0.000126,4]
[347028225,1735475432154,-163.83827035,0.00012661,2]
[347028227,1735475432163,-700.0,0.000127,4]
[347028229,1735475432172,-1945.77,0.0001276,2]
[347028231,1735475432182,-3963.14,0.0001276,2]
[347028233,1735475432191,-2026.57,0.0001276,2]
[347028235,1735475432201,-1673.16,0.0001276,2]
[347028238,1735475432210,-5807.39,0.0001276,2]
[347028240,1735475432220,-2642.11,0.0001276,2]
[347028242,1735475432229,-1416.45,0.0001276,2]
[347028244,1735475432238,-3195.9,0.0001276,2]
[347028246,1735475432248,-1829.13,0.0001276,2]
[347028248,1735475432257,-612.98,0.0001276,2]
[347028250,1735475432267,-3088.02,0.0001276,2]
[347028252,1735475432277,-2039.26,0.0001276,2]
[347028254,1735475432286,-469.32818564,0.0001276,2]
[347028256,1735475432295,-318.19692873,0.0001276,2]
[347028258,1735475432304,-335.20377008,0.0001276,2]
[347028260,1735475432316,-4994.49622992,0.0001276,2]
[347028265,1735475432485,-1506.5,0.0001276,2]
[347028266,1735475432495,-978.93,0.0001276,2]
[347028267,1735475432504,-500.0,0.0001276,2]
[347028268,1735475432514,-3058.75,0.0001276,2]
[347028269,1735475432523,-12058.07,0.0001276,2]
[347028270,1735475432533,-297.44131978,0.0001276,2]
[347028272,1735475437775,-2805.37868022,0.0001276,2]
[347028273,1735475437784,-2142.07,0.0001276,2]
[347028274,1735475437793,-6537.0283699,0.0001276,2]
[347029077,1735475445677,-997.0816301,0.0001276,2]
[347029080,1735475445691,-960.6223699,0.0001276,2]
[347029085,1735475445735,-4000.9676301,0.0001276,2]
[347029088,1735475445748,-2401.03236989,0.0001276,2]
[347029091,1735475445765,-1648.3540861,0.0001276,2]
[347029095,1735475445800,-281.00881241,0.0001276,2]
[347029098,1735475445817,-2798.8061166,0.0001276,2]
[347029103,1735475445852,-1858.398615,0.0001276,2]
[347029106,1735475445865,-2170.38,0.0001276,2]
[347029108,1735475445879,-2107.94,0.0001276,2]
[347029111,1735475445893,-6102.87,0.0001276,2]
[347029113,1735475445907,-2381.08,0.0001276,2]
[347029115,1735475445921,-1590.49,0.0001276,2]
[347029118,1735475445935,-717.69,0.0001276,2]
[347029120,1735475445949,-3565.99,0.0001276,2]
[347029123,1735475445963,-3465.88,0.0001276,2]
[347029125,1735475445977,-500.0,0.0001276,2]
[347029128,1735475445991,-2122.3,0.0001276,2]
[347029130,1735475446004,-500.0,0.0001276,2]
[347029133,1735475446018,-3119.47,0.0001276,2]
[347029135,1735475446032,-796.74,0.0001276,2]
[347029138,1735475446045,-500.0,0.0001276,2]
[347029140,1735475446059,-500.0,0.0001276,2]
[347029143,1735475446073,-714.26,0.0001276,2]
[347029145,1735475446087,-1086.9,0.0001276,2]
[347029148,1735475446100,-500.0,0.0001276,2]
[347029150,1735475446114,-501.51652665,0.0001276,2]
[347029153,1735475446127,-693.75,0.0001276,2]
[347029155,1735475446141,-282.12809297,0.0001276,2]
[347029158,1735475446154,-2608.48,0.0001276,2]
[347029160,1735475446167,-3798.01,0.0001276,2]
[347029163,1735475446181,-1461.39,0.0001276,2]
[347029165,1735475446194,-500.0,0.0001276,2]
[347029167,1735475446207,-5026.0,0.0001276,2]
[347029170,1735475446222,-500.0,0.0001276,2]
[347029172,1735475446236,-500.0,0.0001276,2]
[347029174,1735475446249,-500.0,0.00012761,2]
[347029177,1735475446263,-500.0,0.00012761,2]
[347029179,1735475446276,-500.0,0.00012761,2]
[347029182,1735475446289,-500.0,0.00012761,2]
[347029184,1735475446303,-500.0,0.00012761,2]
[347029187,1735475446317,-500.0,0.00012761,2]
[347029189,1735475446330,-500.0,0.00012761,2]
[347029192,1735475446344,-500.0,0.00012761,2]
[347029194,1735475446357,-500.0,0.00012761,2]
[347029197,1735475446371,-500.0,0.00012761,2]
[347029199,1735475446387,-493.49592036,0.00012761,2]
[347029201,1735475446400,-501.00744511,0.00012761,2]
[347029204,1735475446414,-500.0,0.00012761,2]
[347029206,1735475446428,-500.0,0.00012761,2]
[347029209,1735475446441,-500.0,0.00012761,2]
[347029210,1735475446457,-500.0,0.00012761,2]
[347029211,1735475446472,-500.0,0.00012761,2]